Workbook

Sheet Имплайнды
A1: Шанс улучшиться | C1: Текущий размер банка | E1: Сумма на колл | G1: YOU NEED TO MAKE AT LEAST THIS MUCH MORE ON FUTURE STREETS | J1: Ставка оппа
A3: 0.16 | C3: 200 | E3: 100 | G3: =(1/A3*E3)-(C3+E3) -> 325 | J3: =E3/(C3-E3) -> 1
C5: What is the size of the pot AFTER they bet/raise? | E5: What is the size of the bet/raise you are facing?
C11: Расчеты по другой формуле
B14: Имплайд оддс бонус, т.е сумма, которую ты рассчитываешь добрать при доезде
A15: Дано: | B15: ИОБ | C15: 318
A16: Необходимое эквити | E16: это эквити, которое нужно для колла на данный момент
B17: НЭ = | C17: =E3/(C3+E3+C15) -> 0.1618122977
A21: от обратного
A22: Дано: | B22: НЭ= | C22: 0.14
B23: ИОБ= | C23: =(E3-(C3+E3)*C22)/C22 -> 414.2857143
A26: Необходимо добрать на следующей улице % от пота
A27: =318/(C3+E3) -> 1.06
N29: при 1-3 аутах считать как аут * 2 %, при 4-11 — аут * 2 %+1 %, при 12 и выше — аут * 2 %+2 %.
M31: Two OC+ | N31: OESD+
C32: Банк | I32: low Pair | J32: Two OC | K32: OESD | L32: Flush draw | M32: OESD | N32: Flush draw
C33: 100 | H33: Банк после нашего колла | I33: Ауты
I34: 5 | J34: 6 | K34: 8 | L34: 9 | M34: 14 | N34: 15
I35: Шанс улучшиться и выиграть
C36: опп ставит | E36: ШБ | I36: =(I34*2+1)/100 -> 0.11 | J36: =(J34*2+1)/100 -> 0.13 | K36: =(K34*2+1)/100 -> 0.17 | L36: =(L34*2+1)/100 -> 0.19 | M36: =(M34*2+2)/100 -> 0.3 | N36: =(N34*2+2)/100 -> 0.32 | O36: 0.16 | P36: 0.12
C37: =D37 -> 0.3333333333 | D37: 0.3333333333 | E37: =D37/(1+D37*2) -> 0.2 | F37: =(D37+1)/D37 -> 4 | G37: к 1 | H37: =$C$33+$C$33*C37*2 -> 166.6666667 | I37: =(((1-I36)/I36)-$F37)*$C$33*$C$37 -> 136.3636364 | J37: =(((1-J36)/J36)-$F37)*$C$33*$C$37 -> 89.74358974 | K37: =(((1-K36)/K36)-$F37)*$C$33*$C$37 -> 29.41176471 | L37: =(((1-L36)/L36)-$F37)*$C$33*$C$37 -> 8.771929825 | M37: =(((1-M36)/M36)-$F37)*$C$33*$C$37 -> -55.55555556 | N37: =(((1-N36)/N36)-$F37)*$C$33*$C$37 -> -62.5 | O37: =(((1-O36)/O36)-$F37)*$C$33*$C$37 -> 41.66666667 | P37: =(((1-P36)/P36)-$F37)*$C$33*$C$37 -> 111.1111111
C38: =D38 -> 0.5 | D38: 0.5 | E38: =D38/(1+D38*2) -> 0.25 | F38: 3 | G38: к 1 | H38: =$C$33+$C$33*C38*2 -> 200 | I38: =(((1-I36)/I36)-$F38)*$C$33*$C$38 -> 254.5454545 | J38: =(((1-J36)/J36)-$F38)*$C$33*$C$38 -> 184.6153846 | K38: =(((1-K36)/K36)-$F38)*$C$33*$C$38 -> 94.11764706 | L38: =(((1-L36)/L36)-$F38)*$C$33*$C$38 -> 63.15789474 | M38: =(((1-M36)/M36)-$F38)*$C$33*$C$38 -> -33.33333333 | N38: =(((1-N36)/N36)-$F38)*$C$33*$C$38 -> -43.75 | O38: =(((1-O36)/O36)-$F38)*$C$33*$C$38 -> 112.5 | P38: =(((1-P36)/P36)-$F38)*$C$33*$C$38 -> 216.6666667
C39: 0.6666666667 | D39: 0.6666666667 | E39: 0.2857142857 | F39: 2.5 | G39: к 1 | H39: 233.3333333 | I39: =(((1-I36)/I36)-$F39)*$C$33*$C$39 -> 372.7272727 | J39: =(((1-J36)/J36)-$F39)*$C$33*$C$39 -> 279.4871795 | K39: =(((1-K36)/K36)-$F39)*$C$33*$C$39 -> 158.8235294 | L39: =(((1-L36)/L36)-$F39)*$C$33*$C$39 -> 117.5438596 | M39: =(((1-M36)/M36)-$F39)*$C$33*$C$39 -> -11.11111111 | N39: =(((1-N36)/N36)-$F39)*$C$33*$C$39 -> -25 | O39: =(((1-O36)/O36)-$F39)*$C$33*$C$39 -> 183.3333333 | P39: =(((1-P36)/P36)-$F39)*$C$33*$C$39 -> 322.2222222
C40: 0.75 | D40: 0.75 | E40: 0.3 | F40: 2.333333333 | G40: к 1 | H40: 250 | I40: =(((1-I36)/I36)-$F40)*$C$33*$C$40 -> 431.8181818 | J40: =(((1-J36)/J36)-$F40)*$C$33*$C$40 -> 326.9230769 | K40: =(((1-K36)/K36)-$F40)*$C$33*$C$40 -> 191.1764706 | L40: =(((1-L36)/L36)-$F40)*$C$33*$C$40 -> 144.7368421 | M40: =(((1-M36)/M36)-$F40)*$C$33*$C$40 -> 0 | N40: =(((1-N36)/N36)-$F40)*$C$33*$C$40 -> -15.625 | O40: =(((1-O36)/O36)-$F40)*$C$33*$C$40 -> 218.75 | P40: =(((1-P36)/P36)-$F40)*$C$33*$C$40 -> 375
C41: 1 | D41: 1 | E41: 0.3333333333 | F41: =(D41+1)/D41 -> 2 | G41: к 1 | H41: 300 | I41: =(((1-I36)/I36)-$F41)*$C$33*$C$41 -> 609.0909091 | J41: =(((1-J36)/J36)-$F41)*$C$33*$C$41 -> 469.2307692 | K41: =(((1-K36)/K36)-$F41)*$C$33*$C$41 -> 288.2352941 | L41: =(((1-L36)/L36)-$F41)*$C$33*$C$41 -> 226.3157895 | M41: =(((1-M36)/M36)-$F41)*$C$33*$C$41 -> 33.33333333 | N41: =(((1-N36)/N36)-$F41)*$C$33*$C$41 -> 12.5 | O41: =(((1-O36)/O36)-$F41)*$C$33*$C$41 -> 325 | P41: =(((1-P36)/P36)-$F41)*$C$33*$C$41 -> 533.3333333
I42: Необходимо добрать на следующей улице
I43: =I37/$H$37 -> 0.8181818182 | J43: =J37/$H$37 -> 0.5384615385 | K43: 0.1764705882 | L43: 0.05263157895 | M43: -0.3333333333 | N43: -0.375 | O43: 0.25 | P43: 0.6666666667
I44: =I38/$H$38 -> 1.272727273 | J44: =J38/$H$38 -> 0.9230769231 | K44: 0.4705882353 | L44: 0.3157894737 | M44: -0.1666666667 | N44: -0.21875 | O44: 0.5625 | P44: 1.083333333
I45: =I39/$H$39 -> 1.597402597 | J45: =J39/$H$39 -> 1.197802198 | K45: 0.6806722689 | L45: 0.5037593985 | M45: -0.04761904762 | N45: -0.1071428571 | O45: 0.7857142857 | P45: 1.380952381
I46: =I40/$H$40 -> 1.727272727 | J46: =J40/$H$40 -> 1.307692308 | K46: 0.7647058824 | L46: 0.5789473684 | M46: 0 | N46: -0.0625 | O46: 0.875 | P46: 1.5
I47: =I41/$H$41 -> 2.03030303 | J47: =J41/$H$41 -> 1.564102564 | K47: 0.9607843137 | L47: 0.7543859649 | M47: 0.1111111111 | N47: 0.04166666667 | O47: 1.083333333 | P47: 1.777777778
I48: Необходимо добрать на следующей улице
